[Event "*** Titled Tuesday Blitz"]
[Site "Chess.com"]
[Date "2020.04.07"]
[Round "6"]
[White "enriquetejedor"]
[Black "amintabatabaei"]
[Result "1-0"]
[WhiteElo "2608"]
[BlackElo "2802"]
[TimeControl "180+1"]
[EndTime "14:11:09 PDT"]
[Termination "enriquetejedor won by resignation"]

1. e4 {[%clk 0:03:00.9]} 1... e5 {[%clk 0:02:58.4]} 2. Nf3 {[%clk 0:03:00.8]}
2... Nc6 {[%clk 0:02:58]} 3. Bb5 {[%clk 0:03:01.4]} 3... Nf6 {[%clk 0:02:58.1]}
4. O-O {[%clk 0:03:01.5]} 4... Nxe4 {[%clk 0:02:58.5]} 5. Re1 {[%clk 0:03:01.5]}
5... Nd6 {[%clk 0:02:59.1]} 6. Nxe5 {[%clk 0:03:01.9]} 6... Be7 {[%clk
0:02:57.4]} 7. Bf1 {[%clk 0:03:02]} 7... Nxe5 {[%clk 0:02:57.6]} 8. Rxe5 {[%clk
0:03:02.9]} 8... O-O {[%clk 0:02:58.5]} 9. d4 {[%clk 0:03:03.2]} 9... Bf6 {[%clk
0:02:56.9]} 10. Re1 {[%clk 0:03:03.4]} 10... Re8 {[%clk 0:02:52.9]} 11. c3
{[%clk 0:03:01.6]} 11... Rxe1 {[%clk 0:02:50.4]} 12. Qxe1 {[%clk 0:03:02.5]}
12... Ne8 {[%clk 0:02:51.3]} 13. Bf4 {[%clk 0:03:01.4]} 13... d5 {[%clk
0:02:44.3]} 14. Bd3 {[%clk 0:02:59.9]} 14... g6 {[%clk 0:02:41.1]} 15. Nd2
{[%clk 0:02:57]} 15... Ng7 {[%clk 0:02:41]} 16. Be5 {[%clk 0:02:43.3]} 16... Bf5
{[%clk 0:02:36.6]} 17. Bxf5 {[%clk 0:02:29.7]} 17... Nxf5 {[%clk 0:02:37.5]} 18.
Bxf6 {[%clk 0:02:27.1]} 18... Qxf6 {[%clk 0:02:37]} 19. Nf3 {[%clk 0:02:26.8]}
19... a5 {[%clk 0:02:37.4]} 20. Qe2 {[%clk 0:02:24.6]} 20... a4 {[%clk
0:02:35.7]} 21. Qb5 {[%clk 0:02:20.5]} 21... Qb6 {[%clk 0:02:30.3]} 22. Qxb6
{[%clk 0:02:10.9]} 22... cxb6 {[%clk 0:02:31.2]} 23. Kf1 {[%clk 0:01:52.6]}
23... Nd6 {[%clk 0:02:20.5]} 24. Nd2 {[%clk 0:01:46.1]} 24... b5 {[%clk
0:02:01.7]} 25. a3 {[%clk 0:01:44.1]} 25... f6 {[%clk 0:02:00.4]} 26. Re1 {[%clk
0:01:41.9]} 26... Kf7 {[%clk 0:02:00.6]} 27. Ke2 {[%clk 0:01:34.4]} 27... g5
{[%clk 0:01:59.8]} 28. Kd3 {[%clk 0:01:34]} 28... h5 {[%clk 0:01:59.6]} 29. Nf1
{[%clk 0:01:28.9]} 29... Nc4 {[%clk 0:01:37.2]} 30. Kc2 {[%clk 0:01:29]} 30...
h4 {[%clk 0:01:28.9]} 31. h3 {[%clk 0:01:18.3]} 31... f5 {[%clk 0:01:29]} 32.
Nd2 {[%clk 0:01:10.7]} 32... Nxd2 {[%clk 0:00:24.6]} 33. Kxd2 {[%clk 0:01:11.6]}
33... Re8 {[%clk 0:00:25.3]} 34. Rb1 {[%clk 0:01:08.6]} 34... Ra8 {[%clk
0:00:03.7]} 35. Re1 {[%clk 0:01:05.1]} 35... Re8 {[%clk 0:00:03.8]} 36. Rc1
{[%clk 0:01:03.1]} 36... Kf6 {[%clk 0:00:03.5]} 37. Rb1 {[%clk 0:01:02.4]} 37...
Ra8 {[%clk 0:00:02.5]} 38. Rf1 {[%clk 0:01:00.6]} 38... Rd8 {[%clk 0:00:03.1]}
39. Re1 {[%clk 0:00:59.9]} 39... g4 {[%clk 0:00:02]} 40. Re5 {[%clk 0:00:55.3]}
40... Kg5 {[%clk 0:00:02]} 41. Ke3 {[%clk 0:00:52.3]} 41... Rd7 {[%clk
0:00:02.6]} 42. f4+ {[%clk 0:00:31.1]} 42... Kf6 {[%clk 0:00:02.7]} 43. hxg4
{[%clk 0:00:30.8]} 43... fxg4 {[%clk 0:00:03.6]} 44. Rg5 {[%clk 0:00:31.3]}
44... Re7+ {[%clk 0:00:04.2]} 45. Kf2 {[%clk 0:00:30.8]} 45... g3+ {[%clk
0:00:02.3]} 46. Kf3 {[%clk 0:00:28.2]} 46... Re1 {[%clk 0:00:02.6]} 47. Rxd5
{[%clk 0:00:15.7]} 47... Rf1+ {[%clk 0:00:02.9]} 48. Kg4 {[%clk 0:00:15.2]}
48... Rf2 {[%clk 0:00:02.2]} 49. Rxb5 {[%clk 0:00:14.7]} 49... Rxg2 {[%clk
0:00:02.7]} 50. Kxh4 {[%clk 0:00:14.5]} 50... Rg1 {[%clk 0:00:02.6]} 51. Kg4
{[%clk 0:00:11.2]} 51... b6 {[%clk 0:00:02.2]} 52. Rxb6+ {[%clk 0:00:10.7]}
52... Ke7 {[%clk 0:00:02.7]} 53. Kf3 {[%clk 0:00:09.2]} 53... Kd7 {[%clk
0:00:02.1]} 54. Rb4 {[%clk 0:00:08]} 54... Ke6 {[%clk 0:00:02.1]} 55. Rxa4
{[%clk 0:00:07]} 55... Kd5 {[%clk 0:00:03]} 56. Ra5+ {[%clk 0:00:06.5]} 56...
Kc4 {[%clk 0:00:03.5]} 57. Rg5 {[%clk 0:00:06.3]} 57... Kd3 {[%clk 0:00:01.8]}
58. Rxg3 {[%clk 0:00:06.7]} 58... Rb1 {[%clk 0:00:02.2]} 59. Kg4+ {[%clk
0:00:06]} 59... Ke4 {[%clk 0:00:02.9]} 60. Rg2 {[%clk 0:00:06.2]} 60... Re1
{[%clk 0:00:02.9]} 61. f5 {[%clk 0:00:05.8]} 61... Ke3 {[%clk 0:00:02.1]} 62.
Kg5 {[%clk 0:00:05.7]} 62... Rf1 {[%clk 0:00:02.6]} 63. f6 {[%clk 0:00:06]}
63... Ke4 {[%clk 0:00:03.5]} 64. Re2+ {[%clk 0:00:05.9]} 64... Kd5 {[%clk
0:00:04.4]} 65. Re5+ {[%clk 0:00:06.1]} 65... Kd6 {[%clk 0:00:04.5]} 66. Rf5
{[%clk 0:00:07]} 66... Rg1+ {[%clk 0:00:04.4]} 67. Kf4 {[%clk 0:00:07.4]} 67...
Ke6 {[%clk 0:00:03.9]} 68. Re5+ {[%clk 0:00:05.6]} 68... Kxf6 {[%clk 0:00:03.9]}
69. Re2 {[%clk 0:00:05.5]} 69... Rf1+ {[%clk 0:00:03.1]} 70. Ke3 {[%clk
0:00:05.7]} 70... Ke6 {[%clk 0:00:04]} 71. Kd3+ {[%clk 0:00:06]} 71... Kd6
{[%clk 0:00:04.6]} 72. Re5 {[%clk 0:00:06.1]} 72... Rf2 {[%clk 0:00:04.6]} 73.
b4 {[%clk 0:00:05.9]} 73... Ra2 {[%clk 0:00:04]} 74. Ra5 {[%clk 0:00:06.6]}
74... Kc6 {[%clk 0:00:04.9]} 75. Kc4 {[%clk 0:00:07.5]} 75... Kb6 {[%clk
0:00:05.4]} 76. Kb3 {[%clk 0:00:08.4]} 76... Ra1 {[%clk 0:00:06.3]} 77. Rg5
{[%clk 0:00:08.7]} 77... Rh1 {[%clk 0:00:07.2]} 78. Rg6+ {[%clk 0:00:08.9]}
78... Kc7 {[%clk 0:00:07.2]} 79. a4 {[%clk 0:00:09.3]} 79... Rh5 {[%clk
0:00:05.9]} 80. Rg7+ {[%clk 0:00:09.6]} 80... Kb6 {[%clk 0:00:06.1]} 81. a5+
{[%clk 0:00:10.5]} 81... Ka6 {[%clk 0:00:06.4]} 82. Rg6+ {[%clk 0:00:09.3]}
82... Kb7 {[%clk 0:00:06.1]} 83. Kc4 {[%clk 0:00:09.7]} 83... Rh7 {[%clk
0:00:06.2]} 84. a6+ {[%clk 0:00:09.5]} 84... Ka7 {[%clk 0:00:06.7]} 85. b5
{[%clk 0:00:09.6]} 85... Rh1 {[%clk 0:00:06.4]} 86. Rg7+ {[%clk 0:00:09.2]}
86... Kb8 {[%clk 0:00:07.1]} 87. b6 {[%clk 0:00:09]} 87... Rh8 {[%clk
0:00:07.8]} 88. d5 {[%clk 0:00:08.8]} 88... Rc8+ {[%clk 0:00:07.7]} 89. Kb4
{[%clk 0:00:08.2]} 89... Rh8 {[%clk 0:00:08.6]} 90. c4 {[%clk 0:00:06.6]} 90...
Rd8 {[%clk 0:00:08.7]} 91. c5 {[%clk 0:00:06.1]} 91... Rh8 {[%clk 0:00:09.3]}
92. d6 {[%clk 0:00:06.1]} 92... Rf8 {[%clk 0:00:09.6]} 93. d7 {[%clk 0:00:05.9]}
93... Rd8 {[%clk 0:00:09.1]} 94. Re7 {[%clk 0:00:05.9]} 1-0

[Event "*** Titled Tuesday Blitz"]
[Site "Chess.com"]
[Date "2020.04.07"]
[Round "7"]
[White "nfds"]
[Black "Blitzking642"]
[Result "1-0"]
[WhiteElo "2579"]
[BlackElo "2401"]
[TimeControl "180+1"]
[EndTime "14:12:22 PDT"]
[Termination "nfds won by resignation"]

1. Nf3 {[%clk 0:03:00.9]} 1... c5 {[%clk 0:02:59.7]} 2. e3 {[%clk 0:02:59.8]}
2... Nf6 {[%clk 0:02:57.6]} 3. d4 {[%clk 0:02:57.8]} 3... cxd4 {[%clk 0:02:57]}
4. Nxd4 {[%clk 0:02:55.3]} 4... g6 {[%clk 0:02:55.7]} 5. b3 {[%clk 0:02:52.8]}
5... Bg7 {[%clk 0:02:55.9]} 6. Bb2 {[%clk 0:02:52]} 6... O-O {[%clk 0:02:56.3]}
7. Be2 {[%clk 0:02:51.1]} 7... d5 {[%clk 0:02:55.6]} 8. O-O {[%clk 0:02:49.3]}
8... Nc6 {[%clk 0:02:55.3]} 9. c4 {[%clk 0:02:47.8]} 9... dxc4 {[%clk
0:02:54.3]} 10. Nxc6 {[%clk 0:02:45.2]} 10... b6 {[%clk 0:02:53.5]} 11. Nxd8
{[%clk 0:02:43.3]} 1-0

[Event "*** Titled Tuesday Blitz"]
[Site "Chess.com"]
[Date "2020.04.07"]
[Round "7"]
[White "vinniethepooh"]
[Black "XiaoKangZhong"]
[Result "1/2-1/2"]
[WhiteElo "2607"]
[BlackElo "2430"]
[TimeControl "180+1"]
[EndTime "14:14:47 PDT"]
[Termination "Game drawn by repetition"]

1. d4 {[%clk 0:03:00.9]} 1... Nf6 {[%clk 0:02:59.9]} 2. c4 {[%clk 0:03:01.2]}
2... g6 {[%clk 0:02:59.7]} 3. Nc3 {[%clk 0:03:01.5]} 3... d5 {[%clk 0:02:59]} 4.
cxd5 {[%clk 0:03:02.4]} 4... Nxd5 {[%clk 0:02:59.9]} 5. e4 {[%clk 0:03:02.4]}
5... Nxc3 {[%clk 0:02:59.8]} 6. bxc3 {[%clk 0:03:03.3]} 6... Bg7 {[%clk
0:03:00.2]} 7. Nf3 {[%clk 0:03:03.9]} 7... O-O {[%clk 0:02:59.9]} 8. Be3 {[%clk
0:03:01.7]} 8... c5 {[%clk 0:02:59.7]} 9. Rc1 {[%clk 0:03:02.1]} 9... Nc6 {[%clk
0:02:58.8]} 10. d5 {[%clk 0:03:01.1]} 10... Ne5 {[%clk 0:02:41.9]} 11. Nxe5
{[%clk 0:02:52.5]} 11... Bxe5 {[%clk 0:02:42.8]} 12. Bxc5 {[%clk 0:02:50.1]}
12... Qc7 {[%clk 0:02:39.4]} 13. Bd4 {[%clk 0:02:48.3]} 13... Bf4 {[%clk
0:02:30.8]} 14. Rc2 {[%clk 0:02:41.9]} 14... Bd7 {[%clk 0:02:26.7]} 15. g3
{[%clk 0:02:37.4]} 15... Bd6 {[%clk 0:02:21.1]} 16. f4 {[%clk 0:02:36.6]} 16...
Ba4 {[%clk 0:02:15.7]} 17. Bd3 {[%clk 0:01:59.3]} 17... Bc5 {[%clk 0:02:03.8]}
18. Be5 {[%clk 0:01:54.5]} 18... Bd6 {[%clk 0:02:01.6]} 19. Bd4 {[%clk
0:01:54.2]} 19... Bc5 {[%clk 0:01:57]} 20. Be5 {[%clk 0:01:51.7]} 20... Bd6
{[%clk 0:01:57]} 21. Bd4 {[%clk 0:01:43.6]} 1/2-1/2

[Event "*** Titled Tuesday Blitz"]
[Site "Chess.com"]
[Date "2020.04.07"]
[Round "7"]
[White "Parhamov"]
[Black "SerGo055"]
[Result "1-0"]
[WhiteElo "3081"]
[BlackElo "2556"]
[TimeControl "180+1"]
[EndTime "14:14:48 PDT"]
[Termination "Parhamov won by resignation"]

1. e4 {[%clk 0:03:00.9]} 1... d5 {[%clk 0:02:58.6]} 2. exd5 {[%clk 0:02:56.3]}
2... Qxd5 {[%clk 0:02:59.5]} 3. Nc3 {[%clk 0:02:55.3]} 3... Qd8 {[%clk
0:02:59.1]} 4. d4 {[%clk 0:02:55]} 4... Nf6 {[%clk 0:02:59.3]} 5. Bc4 {[%clk
0:02:52.5]} 5... c6 {[%clk 0:02:58.6]} 6. Nf3 {[%clk 0:02:51.5]} 6... Bf5 {[%clk
0:02:58.3]} 7. Ne5 {[%clk 0:02:48.5]} 7... e6 {[%clk 0:02:58.6]} 8. g4 {[%clk
0:02:48.6]} 8... Be4 {[%clk 0:02:58.5]} 9. Nxe4 {[%clk 0:02:45.6]} 9... Nxe4
{[%clk 0:02:58.3]} 10. Qf3 {[%clk 0:02:45.8]} 10... Nd6 {[%clk 0:02:57.4]} 11.
Bb3 {[%clk 0:02:41.9]} 11... Nd7 {[%clk 0:02:54.4]} 12. Bf4 {[%clk 0:02:40.1]}
12... Be7 {[%clk 0:02:18.7]} 13. h4 {[%clk 0:02:39.7]} 13... a5 {[%clk
0:02:15.2]} 14. a4 {[%clk 0:02:39.3]} 14... Nf6 {[%clk 0:02:10.7]} 15. O-O-O
{[%clk 0:02:36.3]} 15... Nd5 {[%clk 0:02:09.7]} 16. Bg3 {[%clk 0:02:33.7]} 16...
Qc7 {[%clk 0:02:00.4]} 17. c4 {[%clk 0:02:32.6]} 17... Nb4 {[%clk 0:01:51.1]}
18. c5 {[%clk 0:02:32.5]} 18... O-O {[%clk 0:01:31.7]} 19. Nc4 {[%clk
0:02:31.8]} 19... Qd8 {[%clk 0:01:06.7]} 20. cxd6 {[%clk 0:02:31.2]} 20... Bf6
{[%clk 0:01:06.6]} 21. g5 {[%clk 0:02:30.8]} 1-0

[Event "*** Titled Tuesday Blitz"]
[Site "Chess.com"]
[Date "2020.04.07"]
[Round "7"]
[White "mamonika"]
[Black "Carnivoras"]
[Result "0-1"]
[WhiteElo "1949"]
[BlackElo "2625"]
[TimeControl "180+1"]
[EndTime "14:14:51 PDT"]
[Termination "Carnivoras won by resignation"]

1. d4 {[%clk 0:03:00.9]} 1... d5 {[%clk 0:02:59.8]} 2. c4 {[%clk 0:02:59.9]}
2... c6 {[%clk 0:02:59.7]} 3. cxd5 {[%clk 0:02:59.8]} 3... cxd5 {[%clk
0:02:59.8]} 4. Bf4 {[%clk 0:03:00.3]} 4... Nf6 {[%clk 0:02:59.8]} 5. e3 {[%clk
0:03:00.5]} 5... e6 {[%clk 0:03:00.3]} 6. Nc3 {[%clk 0:03:00.1]} 6... Nc6 {[%clk
0:02:59.2]} 7. Bd3 {[%clk 0:02:59.3]} 7... a6 {[%clk 0:02:56.3]} 8. Nf3 {[%clk
0:02:59.2]} 8... Be7 {[%clk 0:02:56.4]} 9. O-O {[%clk 0:02:58.9]} 9... O-O
{[%clk 0:02:56.9]} 10. Rc1 {[%clk 0:02:57.3]} 10... Bd7 {[%clk 0:02:56.3]} 11.
a3 {[%clk 0:02:54.4]} 11... b5 {[%clk 0:02:55.9]} 12. Ne5 {[%clk 0:02:15.4]}
12... Rc8 {[%clk 0:02:53.7]} 13. Bb1 {[%clk 0:02:03.4]} 13... b4 {[%clk
0:02:42.8]} 14. axb4 {[%clk 0:01:49.2]} 14... Nxb4 {[%clk 0:02:43.7]} 15. Na4
{[%clk 0:01:45.5]} 15... Rxc1 {[%clk 0:02:41.2]} 16. Qxc1 {[%clk 0:01:45.9]}
16... Bxa4 {[%clk 0:02:39.8]} 17. Qc3 {[%clk 0:01:45.8]} 17... Qc8 {[%clk
0:02:35.5]} 18. Qd2 {[%clk 0:01:42.5]} 18... Qb7 {[%clk 0:02:31]} 19. g4 {[%clk
0:01:40]} 19... Rc8 {[%clk 0:02:29.9]} 20. g5 {[%clk 0:01:40]} 20... Ne4 {[%clk
0:02:29.3]} 21. Qe2 {[%clk 0:01:40.5]} 21... Bb5 {[%clk 0:02:26.5]} 22. Qh5
{[%clk 0:01:39.9]} 22... g6 {[%clk 0:02:23.9]} 23. Qh3 {[%clk 0:01:34.3]} 23...
Bxf1 {[%clk 0:02:23]} 24. Qxf1 {[%clk 0:01:32]} 24... Qb5 {[%clk 0:02:22.2]} 0-1

[Event "*** Titled Tuesday Blitz"]
[Site "Chess.com"]
[Date "2020.04.07"]
[Round "7"]
[White "AnonymousBread"]
[Black "almo64"]
[Result "0-1"]
[WhiteElo "2526"]
[BlackElo "2717"]
[TimeControl "180+1"]
[EndTime "14:14:52 PDT"]
[Termination "almo64 won by resignation"]

1. d4 {[%clk 0:03:00.9]} 1... d5 {[%clk 0:02:57.9]} 2. Nc3 {[%clk 0:03:01.2]}
2... Nf6 {[%clk 0:02:56.4]} 3. Bf4 {[%clk 0:03:01.8]} 3... a6 {[%clk 0:02:55]}
4. e3 {[%clk 0:03:02.4]} 4... Bf5 {[%clk 0:02:54.5]} 5. f3 {[%clk 0:03:02.6]}
5... h6 {[%clk 0:02:53.6]} 6. g4 {[%clk 0:03:03.2]} 6... Bh7 {[%clk 0:02:53.2]}
7. h4 {[%clk 0:03:04]} 7... e6 {[%clk 0:02:53.6]} 8. Bd3 {[%clk 0:03:03.1]} 8...
Bxd3 {[%clk 0:02:52.6]} 9. Qxd3 {[%clk 0:03:04]} 9... c5 {[%clk 0:02:52.6]} 10.
dxc5 {[%clk 0:03:04.9]} 10... Bxc5 {[%clk 0:02:49.7]} 11. Nge2 {[%clk
0:03:05.6]} 11... Nc6 {[%clk 0:02:49.8]} 12. O-O-O {[%clk 0:03:04.5]} 12... Rc8
{[%clk 0:02:49.2]} 13. g5 {[%clk 0:02:59.4]} 13... Nh5 {[%clk 0:02:49.2]} 14. g6
{[%clk 0:02:59.3]} 14... f5 {[%clk 0:02:28.1]} 15. e4 {[%clk 0:02:57]} 15...
dxe4 {[%clk 0:02:14.4]} 16. Qc4 {[%clk 0:02:54.3]} 16... Qe7 {[%clk 0:02:12.5]}
17. fxe4 {[%clk 0:02:45.5]} 17... Nxf4 {[%clk 0:02:09.3]} 18. Nxf4 {[%clk
0:02:46.4]} 18... Be3+ {[%clk 0:02:09]} 19. Kb1 {[%clk 0:02:47.3]} 19... Bxf4
{[%clk 0:02:08.9]} 20. exf5 {[%clk 0:02:48]} 20... Be5 {[%clk 0:02:02.4]} 21.
fxe6 {[%clk 0:02:44.5]} 21... b5 {[%clk 0:01:26]} 22. Qd5 {[%clk 0:02:41.4]}
22... O-O {[%clk 0:01:23.8]} 23. Rhf1 {[%clk 0:02:34]} 23... Rfd8 {[%clk
0:01:06.8]} 0-1

[Event "*** Titled Tuesday Blitz"]
[Site "Chess.com"]
[Date "2020.04.07"]
[Round "7"]
[White "Hanging_pointer"]
[Black "Sadikhov_Ulvi"]
[Result "1/2-1/2"]
[WhiteElo "2529"]
[BlackElo "2709"]
[TimeControl "180+1"]
[EndTime "14:14:55 PDT"]
[Termination "Game drawn by agreement"]

1. d4 {[%clk 0:02:58.1]} 1... Nf6 {[%clk 0:02:59.2]} 2. c4 {[%clk 0:02:54.8]}
2... g6 {[%clk 0:02:58.5]} 3. Nc3 {[%clk 0:02:54]} 3... Bg7 {[%clk 0:02:57.5]}
4. e4 {[%clk 0:02:53.7]} 4... d6 {[%clk 0:02:58]} 5. Nf3 {[%clk 0:02:52.6]} 5...
Bg4 {[%clk 0:02:58]} 6. Be2 {[%clk 0:02:51.3]} 6... Nfd7 {[%clk 0:02:57.8]} 7.
Be3 {[%clk 0:02:48.4]} 7... O-O {[%clk 0:02:56.9]} 8. O-O {[%clk 0:02:42.9]}
8... Nc6 {[%clk 0:02:55.3]} 9. Qd2 {[%clk 0:02:38.2]} 9... Bxf3 {[%clk
0:02:54.5]} 10. Bxf3 {[%clk 0:02:39.1]} 10... e5 {[%clk 0:02:54.9]} 11. dxe5
{[%clk 0:02:34.1]} 11... dxe5 {[%clk 0:02:54.6]} 12. Rad1 {[%clk 0:02:32]} 12...
Nd4 {[%clk 0:02:54.1]} 13. Nb5 {[%clk 0:02:30.1]} 13... c5 {[%clk 0:02:48.3]}
14. Nc3 {[%clk 0:02:24]} 14... Re8 {[%clk 0:02:44.3]} 15. Nd5 {[%clk 0:02:21.9]}
15... Nf8 {[%clk 0:02:43.6]} 16. Bg4 {[%clk 0:02:14.4]} 16... h5 {[%clk
0:02:41.4]} 17. Bh3 {[%clk 0:02:13.9]} 17... Nfe6 {[%clk 0:02:39.4]} 18. Bxe6
{[%clk 0:02:08.9]} 18... fxe6 {[%clk 0:02:37.8]} 19. Bg5 {[%clk 0:02:01]}
1/2-1/2

[Event "*** Titled Tuesday Blitz"]
[Site "Chess.com"]
[Date "2020.04.07"]
[Round "7"]
[White "eightbyeightchess"]
[Black "flomarechot"]
[Result "0-1"]
[WhiteElo "2316"]
[BlackElo "2199"]
[TimeControl "180+1"]
[EndTime "14:15:20 PDT"]
[Termination "flomarechot won by resignation"]

1. e4 {[%clk 0:01:59]} 1... d6 {[%clk 0:02:58.7]} 2. d4 {[%clk 0:01:49.2]} 2...
Nf6 {[%clk 0:02:58.8]} 3. Nc3 {[%clk 0:01:48.8]} 3... e5 {[%clk 0:02:59.1]} 4.
f4 {[%clk 0:01:46.3]} 4... exd4 {[%clk 0:02:54.5]} 5. Qxd4 {[%clk 0:01:47.2]}
5... Nc6 {[%clk 0:02:54.2]} 6. Qd3 {[%clk 0:01:47.2]} 6... g6 {[%clk 0:02:48]}
7. Nf3 {[%clk 0:01:46.7]} 7... Bg7 {[%clk 0:02:48.2]} 8. Be2 {[%clk 0:01:47.3]}
8... O-O {[%clk 0:02:48.4]} 9. O-O {[%clk 0:01:44.5]} 9... Re8 {[%clk
0:02:48.1]} 10. Be3 {[%clk 0:01:37.6]} 10... Ng4 {[%clk 0:02:45.2]} 11. f5
{[%clk 0:01:32]} 11... Nxe3 {[%clk 0:02:38.2]} 12. Qxe3 {[%clk 0:01:31.1]} 12...
gxf5 {[%clk 0:02:36.6]} 13. Bc4 {[%clk 0:01:29.9]} 13... fxe4 {[%clk 0:02:29.9]}
14. Ng5 {[%clk 0:01:25.4]} 14... Bd4 {[%clk 0:02:29.8]} 15. Bxf7+ {[%clk
0:01:21.2]} 15... Kh8 {[%clk 0:02:24.4]} 16. Qxd4+ {[%clk 0:01:20.7]} 16... Nxd4
{[%clk 0:02:24.1]} 17. Bxe8 {[%clk 0:01:20.9]} 17... Qxg5 {[%clk 0:02:10.5]} 18.
Rf8+ {[%clk 0:01:18.7]} 18... Kg7 {[%clk 0:02:09.6]} 19. Rf7+ {[%clk 0:01:19.6]}
19... Kg8 {[%clk 0:02:08.3]} 20. Raf1 {[%clk 0:01:20.5]} 20... Be6 {[%clk
0:02:01.4]} 21. Rf8+ {[%clk 0:01:18.9]} 21... Kg7 {[%clk 0:02:00.8]} 22. Kh1
{[%clk 0:01:15.5]} 22... d5 {[%clk 0:01:57.9]} 0-1

[Event "*** Titled Tuesday Blitz"]
[Site "Chess.com"]
[Date "2020.04.07"]
[Round "7"]
[White "Atakishiyev04"]
[Black "nochewycandy"]
[Result "0-1"]
[WhiteElo "2639"]
[BlackElo "2532"]
[TimeControl "180+1"]
[EndTime "14:15:47 PDT"]
[Termination "nochewycandy won by resignation"]

1. d4 {[%clk 0:03:00.9]} 1... g6 {[%clk 0:03:00.9]} 2. c4 {[%clk 0:02:59.2]}
2... Bg7 {[%clk 0:03:01.4]} 3. Nc3 {[%clk 0:02:56.3]} 3... d6 {[%clk 0:02:59.1]}
4. g3 {[%clk 0:02:53.8]} 4... Nf6 {[%clk 0:02:56.7]} 5. Bg2 {[%clk 0:02:51.8]}
5... O-O {[%clk 0:02:57.6]} 6. Nf3 {[%clk 0:02:51]} 6... c5 {[%clk 0:02:57.2]}
7. O-O {[%clk 0:02:49.1]} 7... Nc6 {[%clk 0:02:48.6]} 8. d5 {[%clk 0:02:41.6]}
8... Na5 {[%clk 0:02:47.2]} 9. Nd2 {[%clk 0:02:40.4]} 9... a6 {[%clk 0:02:45.3]}
10. Qc2 {[%clk 0:02:37.9]} 10... Rb8 {[%clk 0:02:44.6]} 11. a4 {[%clk
0:02:36.4]} 11... e6 {[%clk 0:02:33.9]} 12. e4 {[%clk 0:02:26.3]} 12... exd5
{[%clk 0:02:30.4]} 13. cxd5 {[%clk 0:02:24.8]} 13... b5 {[%clk 0:02:29.8]} 14.
axb5 {[%clk 0:02:21.8]} 14... axb5 {[%clk 0:02:30.7]} 15. h3 {[%clk 0:02:07.6]}
15... Re8 {[%clk 0:02:24.7]} 16. Kh2 {[%clk 0:02:00.6]} 16... c4 {[%clk
0:02:23.7]} 17. f4 {[%clk 0:01:55.4]} 17... Bd7 {[%clk 0:02:19.6]} 18. Re1
{[%clk 0:01:41.3]} 18... b4 {[%clk 0:02:16.2]} 19. Nd1 {[%clk 0:01:34.2]} 19...
Nxd5 {[%clk 0:01:59.7]} 20. Nf2 {[%clk 0:01:23.7]} 20... b3 {[%clk 0:01:50.6]}
21. Qd1 {[%clk 0:01:10.5]} 21... Nb4 {[%clk 0:01:50.1]} 0-1

[Event "*** Titled Tuesday Blitz"]
[Site "Chess.com"]
[Date "2020.04.07"]
[Round "7"]
[White "FabianoCaruana"]
[Black "theprosecution1"]
[Result "1-0"]
[WhiteElo "3026"]
[BlackElo "2809"]
[TimeControl "180+1"]
[EndTime "14:15:52 PDT"]
[Termination "FabianoCaruana won by resignation"]

1. e4 {[%clk 0:02:39.4]} 1... c5 {[%clk 0:02:59.9]} 2. Nf3 {[%clk 0:02:38.7]}
2... g6 {[%clk 0:02:59.3]} 3. c3 {[%clk 0:02:38.5]} 3... d5 {[%clk 0:02:56.9]}
4. e5 {[%clk 0:02:38.3]} 4... Nc6 {[%clk 0:02:52.4]} 5. h3 {[%clk 0:02:38]} 5...
d4 {[%clk 0:02:48.2]} 6. Bb5 {[%clk 0:02:37.5]} 6... Qb6 {[%clk 0:02:40.1]} 7.
Bxc6+ {[%clk 0:02:33]} 7... Qxc6 {[%clk 0:02:41]} 8. O-O {[%clk 0:02:32.2]} 8...
d3 {[%clk 0:02:28.2]} 9. c4 {[%clk 0:02:32]} 9... Bf5 {[%clk 0:02:26]} 10. Nc3
{[%clk 0:02:31.6]} 10... O-O-O {[%clk 0:02:26.1]} 11. a3 {[%clk 0:02:28.1]}
11... f6 {[%clk 0:02:23.8]} 12. b4 {[%clk 0:02:27.9]} 12... g5 {[%clk
0:02:23.7]} 13. bxc5 {[%clk 0:02:19.1]} 13... h5 {[%clk 0:02:23.6]} 14. Nb5
{[%clk 0:02:12.6]} 14... Kb8 {[%clk 0:02:21.9]} 15. Nfd4 {[%clk 0:02:12.6]}
15... Qc8 {[%clk 0:02:11.8]} 16. Rb1 {[%clk 0:01:45.7]} 16... Be4 {[%clk
0:01:40.9]} 17. Qa4 {[%clk 0:01:37.7]} 17... Qxc5 {[%clk 0:01:35.6]} 18. Ne6
{[%clk 0:01:35]} 18... Qb6 {[%clk 0:01:08.1]} 19. Nxd8 {[%clk 0:01:33.4]} 19...
Qxd8 {[%clk 0:01:01.9]} 20. Qxa7+ {[%clk 0:01:31.2]} 20... Kc8 {[%clk
0:01:02.3]} 21. Qa8+ {[%clk 0:01:29.6]} 21... Kd7 {[%clk 0:01:02.4]} 22. e6+
{[%clk 0:01:30.3]} 1-0

[Event "*** Titled Tuesday Blitz"]
[Site "Chess.com"]
[Date "2020.04.07"]
[Round "7"]
[White "champ2005"]
[Black "Storne89"]
[Result "1-0"]
[WhiteElo "2979"]
[BlackElo "2618"]
[TimeControl "180+1"]
[EndTime "14:15:56 PDT"]
[Termination "champ2005 won by resignation"]

1. c4 {[%clk 0:03:00.9]} 1... e5 {[%clk 0:02:59.5]} 2. Nc3 {[%clk 0:03:01]} 2...
Nc6 {[%clk 0:02:59.2]} 3. g3 {[%clk 0:03:00.8]} 3... Bc5 {[%clk 0:02:53.9]} 4.
Bg2 {[%clk 0:03:00.2]} 4... d6 {[%clk 0:02:54.1]} 5. e3 {[%clk 0:02:59.9]} 5...
a6 {[%clk 0:02:54]} 6. Nge2 {[%clk 0:02:59.5]} 6... Ba7 {[%clk 0:02:54.2]} 7. d4
{[%clk 0:02:57.4]} 7... Nge7 {[%clk 0:02:43.2]} 8. O-O {[%clk 0:02:52.6]} 8...
h5 {[%clk 0:02:42.9]} 9. dxe5 {[%clk 0:02:38.5]} 9... Nxe5 {[%clk 0:02:41.7]}
10. h4 {[%clk 0:02:38.3]} 10... g5 {[%clk 0:02:40.7]} 11. e4 {[%clk 0:01:47.5]}
11... gxh4 {[%clk 0:02:38.9]} 12. Bg5 {[%clk 0:01:47.8]} 12... hxg3 {[%clk
0:01:55.5]} 13. Nd5 {[%clk 0:01:47]} 13... gxf2+ {[%clk 0:01:48.4]} 14. Kh1
{[%clk 0:01:47.1]} 14... N5g6 {[%clk 0:01:45.5]} 15. Nd4 {[%clk 0:01:47.3]}
15... Bg4 {[%clk 0:01:37.1]} 16. Qd2 {[%clk 0:01:33.2]} 16... c6 {[%clk
0:01:37]} 17. Nf6+ {[%clk 0:01:32.7]} 1-0